[Event "45th Guernsey Open 2019"]
[Site "Vale"]
[Date "2019.10.21"]
[Round "2.11"]
[White "Strade, Arita"]
[Black "Turner, Joseph David"]
[Result "1-0"]
[ECO "B00"]
[WhiteElo "1882"]
[BlackElo "1842"]
[Annotator "NA RC"]
[PlyCount "131"]
[EventDate "2019.10.20"]
[EventCountry "GCI"]
[SourceTitle "playchess.com"]
[Source "ChessBase"]
[SourceQuality "1"]
[TimeControl "40/6000+30:2400+30"]

1. e4 {[%emt 0:00:00]} d6 {[%emt 0:00:00]} 2. d4 {[%emt 0:00:01]} Nf6 {[%emt 0:00:00]} 3. Bd3 {[%emt 0:03:42]} g6 {[%emt 0:03:11]} 4. Nf3 {[%emt 0:05:06]} Bg7 {[%emt 0:00:28]} 5. O-O {[%emt 0:11:50]} O-O {[%emt 0:00:24]} 6. c3 {[%emt 0:01:48]} Nfd7 {[%emt 0:11:57] B07: Pirc Defence: Miscellaneous Systems} 7. Na3 $146 {[%emt 0:15:35]} ({Predecessor:} 7. Re1 e5 8. Bg5 Qe8 9. Nbd2 h6 10. Bh4 Nc6 11. dxe5 Ncxe5 12. Nxe5 Nxe5 13. Bf1 Qc6 14. Bg3 {½-½ (56) Vedmediuc,S (2465)-Nepomniachtchi,I (2730) Porto Carras 2011}) 7... c5 {[%emt 0:02:07]} 8. Nc2 {[%emt 0:02:05]} Nc6 {[%emt 0:01:20]} 9. Qe2 {[%emt 0:04:51]} Qc7 {[%emt 0:14:05]} 10. Bd2 {[%emt 0:08:35]} Rb8 {[%emt 0:05:26]} 11. Rab1 {[%emt 0:02:43]} a6 {[%emt 0:00:48]} 12. a4 {[%emt 0:00:55]} Re8 {[%emt 0:13:26]} 13. b4 {[%emt 0:03:50]} e5 {[%emt 0:09:22]} 14. dxc5 {[%emt 0:05:06]} dxc5 {[%emt 0:01:54]} 15. b5 {[%emt 0:01:59]} axb5 {[%emt 0:02:15]} 16. axb5 {[%emt 0:00:17]} Nd8 {[%emt 0:02:14]} 17. Ne3 {[%emt 0:01:50]} b6 {[%emt 0:04:59]} 18. Nd5 {[%emt 0:10:06]} Qd6 {[%emt 0:01:54]} 19. Bc4 {[%emt 0:01:37]} Nf6 {[%emt 0:04:25]} 20. Qd3 {[%emt 0:02:55]} Nxd5 {[%emt 0:03:42]} 21. Bxd5 {[%emt 0:00:11]} Be6 {[%emt 0:02:59]} 22. Rfe1 {[%emt 0:07:00]} h6 {[%emt 0:05:44]} 23. Bc1 {[%emt 0:07:29]} Re7 {[%emt 0:04:55]} 24. Rd1 {[%emt 0:00:39]} Rd7 {[%emt 0:01:49]} 25. Bb2 {[%emt 0:01:03]} Kf8 {[%emt 0:01:12]} 26. Qc2 {[%emt 0:01:30]} Qe7 {[%emt 0:01:38]} 27. Qe2 {[%emt 0:02:26]} Bg4 {[%emt 0:01:19]} 28. Ra1 {[%emt 0:00:40]} Ne6 {[%emt 0:01:01]} 29. Qe3 {[%emt 0:02:23]} Rbd8 {[%emt 0:01:12]} 30. h3 {[%emt 0:01:05]} Bxf3 {[%emt 0:00:29]} 31. Qxf3 {[%emt 0:00:12]} Nf4 {[%emt 0:00:37]} 32. c4 {[%emt 0:00:52]} g5 {[%emt 0:02:16]} 33. Ra6 {[%emt 0:00:38]} Rd6 {[%emt 0:00:27]} 34. Kh2 {[%emt 0:01:02]} Rf6 {[%emt 0:02:06]} 35. Qe3 {[%emt 0:00:24]} Rg6 {[%emt 0:00:47]} 36. g3 {[%emt 0:01:10]} Nxd5 {[%emt 0:02:52]} 37. Rxd5 {[%emt 0:00:23]} Rgd6 {[%emt 0:01:04]} 38. Qd2 {[%emt 0:02:55]} Rxd5 {[%emt 0:00:37]} 39. exd5 {[%emt 0:01:05]} Rd6 {[%emt 0:00:18]} 40. Qe3 {[%emt 0:00:24]} f5 {[%emt 0:00:59]} 41. Ra8+ {[%emt 0:40:56]} Kf7 {[%emt 0:40:28]} 42. Qf3 {[%emt 0:00:33]} Kg6 {[%emt 0:00:31]} 43. Ra6 {[%emt 0:00:34]} e4 {[%emt 0:01:19]} 44. Qe2 {[%emt 0:00:44]} Bxb2 {[%emt 0:00:35]} 45. Qxb2 {[%emt 0:00:05]} Qf6 {[%emt 0:00:07]} 46. Qa2 {[%emt 0:00:00]} Qd4 {[%emt 0:00:00]} 47. Ra8 {[%emt 0:00:00]} f4 {[%emt 0:00:00]} 48. Rc8 {[%emt 0:00:00]} Rf6 {[%emt 0:00:00]} 49. Rc6 {[%emt 0:00:00]} f3 {[%emt 0:00:00]} 50. Qc2 {[%emt 0:00:00]} Kf5 {[%emt 0:00:00]} 51. g4+ {[%emt 0:00:00]} Kg6 {[%emt 0:00:00]} 52. h4 {[%emt 0:00:00]} gxh4 {[%emt 0:00:00]} 53. Kh3 {[%emt 0:00:00]} Qe5 {[%emt 0:00:00]} 54. Qc1 {[%emt 0:00:00]} Qg5 {[%emt 0:01:43]} 55. Qc3 {[%emt 0:00:00]} Rxc6 {[%emt 0:01:54]} 56. bxc6 {[%emt 0:00:00]} h5 {[%emt 0:00:17]} 57. gxh5+ {[%emt 0:00:00]} Qxh5 {[%emt 0:00:12]} 58. Qe1 {[%emt 0:01:21]} Qf5+ {[%emt 0:00:24]} 59. Kh2 {[%emt 0:00:16]} Qf4+ {[%emt 0:00:21]} 60. Kh1 {[%emt 0:00:41]} Kf5 {[%emt 0:01:47]} 61. Qg1 {[%emt 0:01:38]} h3 $2 {[%emt 0:01:05] [#]} (61... e3 $11 62. fxe3 Qe5) 62. Qg7 $1 {[%emt 0:00:53]} Qc1+ {[%emt 0:00:10]} 63. Kh2 {[%emt 0:00:18]} Qf1 {[%emt 0:00:45]} 64. Qg3 {[%emt 0:00:47]} Qxc4 {[%emt 0:00:56]} 65. c7 {[%emt 0:00:32]} Qa6 {[%emt 0:00:53] [#]} 66. c8=Q+ {[%emt 0:00:59]} 1-0

[Event "45th Guernsey Open 2019"]
[Site "Vale"]
[Date "2019.10.22"]
[Round "3.3"]
[White "Purdon, Colin"]
[Black "Baker, Chris W"]
[Result "1/2-1/2"]
[ECO "D85"]
[WhiteElo "1993"]
[BlackElo "2245"]
[Annotator "RC"]
[PlyCount "22"]
[EventDate "2019.10.20"]
[EventCountry "GCI"]
[SourceTitle "playchess.com"]
[Source "ChessBase"]
[SourceQuality "1"]
[TimeControl "40/6000+30:2400+30"]

1. d4 {[%emt 0:00:00]} Nf6 {[%emt 0:00:00]} 2. c4 {[%emt 0:00:00]} g6 {[%emt 0:00:00]} 3. Nc3 {[%emt 0:00:04]} d5 {[%emt 0:00:00]} 4. cxd5 {[%emt 0:01:06]} Nxd5 {[%emt 0:00:00]} 5. e4 {[%emt 0:00:13]} Nxc3 {[%emt 0:00:21]} 6. bxc3 {[%emt 0:00:08]} Bg7 {[%emt 0:00:44]} 7. Be3 {[%emt 0:01:03]} c5 {[%emt 0:06:31]} 8. Nf3 {[%emt 0:02:18]} Nc6 {[%emt 0:04:41]} 9. Rc1 {[%emt 0:07:47]} cxd4 {[%emt 0:13:57]} 10. cxd4 {[%emt 0:00:26]} Qa5+ {[%emt 0:00:23]} 11. Qd2 {[%emt 0:05:15]} Qxd2+ {[%emt 0:06:13]} 1/2-1/2

[Event "45th Guernsey Open 2019"]
[Site "Vale"]
[Date "2019.10.22"]
[Round "3.5"]
[White "Reijneveld, Ad"]
[Black "Morcom, Huw"]
[Result "1/2-1/2"]
[ECO "B90"]
[WhiteElo "2056"]
[BlackElo "1906"]
[Annotator "NA"]
[PlyCount "49"]
[EventDate "2019.10.20"]
[EventCountry "GCI"]
[SourceTitle "playchess.com"]
[Source "ChessBase"]
[SourceQuality "1"]
[TimeControl "40/6000+30:2400+30"]

1. e4 {[%emt 0:00:00]} c5 {[%emt 0:00:00]} 2. Nf3 {[%emt 0:00:00]} d6 {[%emt 0:00:00]} 3. d4 {[%emt 0:00:06]} cxd4 {[%emt 0:00:06]} 4. Nxd4 {[%emt 0:00:05]} Nf6 {[%emt 0:00:07]} 5. Nc3 {[%emt 0:00:06]} a6 {[%emt 0:00:29]} 6. h3 {[%emt 0:00:09]} e5 {[%emt 0:02:31]} 7. Nde2 {[%emt 0:01:10]} h6 {[%emt 0:00:11] B90: Sicilian Najdorf: Unusual White 6th moves, 6 Be3 Ng4 and 6 Be3 e5} (7... h5 8. g3 Nbd7 9. Bg2 b5 10. O-O Bb7 11. a4 b4 12. Nd5 Nxd5 13. exd5 Be7 14. a5 Rb8 15. Bd2 {1-0 (36) Wei,Y (2721)-Vachier Lagrave,M (2774) chess.com INT 2019}) 8. g4 {[%emt 0:01:01]} g5 {[%emt 0:00:46]} 9. Bg2 $146 {[%emt 0:00:32]} ({Predecessor:} 9. Ng3 Be6 10. Bg2 Nc6 11. Be3 Ne7 12. Qf3 Ng6 13. Nf5 Rb8 14. O-O-O Be7 15. Nd5 Nxd5 16. Ng7+ Kd7 17. exd5 Nh4 18. dxe6+ fxe6 19. Qf7 Nxg2 20. Rxd6+ Kxd6 21. Qxe6+ Kc7 22. Bb6# {1-0 (22) Perunovic,M (2565)-Krstic,N (1658) Obrenovac 2010}) 9... Be6 {[%emt 0:00:20]} 10. Be3 {[%emt 0:01:40]} Nbd7 {[%emt 0:00:19]} 11. Qd2 {[%emt 0:01:22]} Be7 {[%emt 0:00:09]} 12. Ng3 {[%emt 0:01:25]} Nb6 {[%emt 0:00:07]} 13. b3 {[%emt 0:01:14]} Rc8 {[%emt 0:00:16]} 14. Nd5 {[%emt 0:01:44]} Nbxd5 {[%emt 0:01:14]} 15. exd5 {[%emt 0:00:10]} Bd7 {[%emt 0:00:05]} 16. c4 {[%emt 0:06:16]} h5 {[%emt 0:00:44]} 17. Bxg5 {[%emt 0:06:44]} (17. f3 $16) 17... hxg4 {[%emt 0:00:11]} 18. Bxf6 {[%emt 0:04:20]} Bxf6 {[%emt 0:00:33]} 19. Ne4 {[%emt 0:00:44]} gxh3 {[%emt 0:10:09]} 20. Nxd6+ {[%emt 0:01:29]} Kf8 {[%emt 0:00:06]} 21. Be4 {[%emt 0:02:14]} Rc7 $11 {[%emt 0:01:42]} (21... Rh4 $17 22. O-O Bg5) 22. Nf5 {[%emt 0:03:08]} Bg5 $2 {[%emt 0:00:42]} (22... Bxf5 $15 {keeps the upper hand.} 23. Bxf5 e4 24. Qb4+ Re7) 23. Qd3 {[%emt 0:02:15]} Bxf5 {[%emt 0:00:37]} 24. Bxf5 {[%emt 0:00:07]} h2 {[%emt 0:00:06]} 25. Rd1 {[%emt 0:07:52]} (25. d6 $1 $11 e4 26. Qd5 (26. Bxe4 Rd7 $15)) 1/2-1/2

[Event "45th Guernsey Open 2019"]
[Site "Vale"]
[Date "2019.10.22"]
[Round "3.6"]
[White "White, Nigel"]
[Black "Thurlow, Kevin J"]
[Result "1/2-1/2"]
[ECO "B40"]
[WhiteElo "1975"]
[BlackElo "2021"]
[Annotator "NA"]
[PlyCount "35"]
[EventDate "2019.10.20"]
[EventCountry "GCI"]
[SourceTitle "playchess.com"]
[Source "ChessBase"]
[SourceQuality "1"]
[TimeControl "40/6000+30:2400+30"]

{[%evp 9,34,-9,-1,32767,32767,32767,32767,32767,32767,32767,-23,-18,32767,32767,32767,32767,-25,-26,-4,-10,32767,32767,32767,32767,32767,15,12]} 1. e4 {[%emt 0:00:00]} c5 {[%emt 0:00:00]} 2. Nf3 {[%emt 0:00:00]} e6 {[%emt 0:00:01]} 3. Nc3 {[%emt 0:00:00]} Nc6 {[%emt 0:00:13]} 4. g3 {[%emt 0:00:00]} d5 {[%emt 0:03:04]} 5. exd5 {[%emt 0:13:49]} exd5 {[%emt 0:00:20]} 6. Bg2 {[%emt 0:00:04]} Nf6 {[%emt 0:00:36]} 7. O-O {[%emt 0:00:26]} d4 {[%emt 0:02:53]} 8. Re1+ {[%emt 0:00:15]} Be7 {[%emt 0:00:07]} 9. Ne4 {[%emt 0:01:03]} Nxe4 {[%emt 0:00:49]} 10. Rxe4 {[%emt 0:00:02]} Bf5 {[%emt 0:00:17]} 11. Re1 {[%emt 0:00:21]} O-O {[%emt 0:00:13]} 12. d3 {[%emt 0:00:19]} Qd7 {[%emt 0:07:18]} 13. Bf4 {[%emt 0:09:22]} Rae8 {[%emt 0:10:14]} 14. Ne5 {[%emt 0:04:51]} Nxe5 {[%emt 0:01:24]} 15. Rxe5 {[%emt 0:01:50]} b6 {[%emt 0:00:46]} 16. Qf3 {[%emt 0:06:48]} Bg4 {[%emt 0:03:40]} 17. Qc6 {[%emt 0:01:53]} Bf6 $11 {[%emt 0:03:58]} 18. Ree1 {[%emt 0:02:14]} 1/2-1/2

[Event "45th Guernsey Open 2019"]
[Site "Vale"]
[Date "2019.10.22"]
[Round "3.7"]
[White "Dilleigh, Stephen P"]
[Black "Rosen, Daniel B"]
[Result "1/2-1/2"]
[ECO "A41"]
[WhiteElo "2037"]
[BlackElo "1990"]
[Annotator "NA RC"]
[PlyCount "104"]
[EventDate "2019.10.20"]
[EventCountry "GCI"]
[SourceTitle "playchess.com"]
[Source "ChessBase"]
[SourceQuality "1"]
[TimeControl "40/6000+30:2400+30"]

{[%evp 8,100,74,32767,32767,32767,32767,76,73,79,87,32767,77,73,32767,71,32767,43,40,49,38,47,53,32767,32767,32,36,47,42,41,32767,44,47,32767,64,62,32767,32767,32767,72,32767,32767,32767,90,32767,32767,77,66,82,75,88,83,166,32767,32767,32767,32767,97,32767,92,101,32767,32767,32767,112,102,112,32767,32767,249,6512,1637,751,29966,1036,32767,32767,29970,12833,29969,29975,29976,29976,29975,29977,32767,0,0,0,0,0,0,0,0,0]} 1. Nf3 {[%emt 0:00:00]} d6 {[%emt 0:00:00]} 2. d4 {[%emt 0:00:00]} Bg4 {[%emt 0:00:13]} 3. c4 {[%emt 0:00:00]} c6 {[%emt 0:03:27]} 4. Nc3 {[%emt 0:01:04]} Nd7 {[%emt 0:01:02]} 5. e4 {[%emt 0:16:14]} Ngf6 {[%emt 0:04:45]} 6. Be2 {[%emt 0:00:34]} Bxf3 {[%emt 0:02:49]} 7. Bxf3 {[%emt 0:00:47]} e5 {[%emt 0:00:17]} 8. O-O {[%emt 0:01:51]} Be7 {[%emt 0:00:17]} 9. d5 {[%emt 0:03:11]} O-O {[%emt 0:00:54]} 10. Be3 {[%emt 0:02:15]} cxd5 {[%emt 0:21:21] A53: Old Indian Defence without Nf3} 11. cxd5 {[%emt 0:03:01]} Qa5 {[%emt 0:02:53]} (11... Qb8 12. Qb3 Rc8 13. Rfc1 a6 14. a4 Bd8 15. a5 b6 16. axb6 Nc5 17. Bxc5 Rxc5 {1-0 (55) Mareco,S (2664)-Gonzalez,R (2451) chess.com INT 2017}) 12. Qa4 $146 {[%emt 0:07:55]} ({Predecessor:} 12. a3 Rfc8 13. b4 Qd8 14. Qb3 g6 15. Be2 h5 16. f3 Nh7 17. g3 Bg5 {0-1 (57) Juhasz,K (2150)-Kernazhitsky,L (2338) Zalakaros 2008}) 12... Qxa4 {[%emt 0:01:44]} 13. Nxa4 {[%emt 0:00:26]} Rfc8 {[%emt 0:00:19]} 14. Rfc1 {[%emt 0:01:55]} a6 {[%emt 0:01:08]} 15. Nb6 {[%emt 0:06:13]} Nxb6 {[%emt 0:00:21]} 16. Bxb6 {[%emt 0:00:09]} Kf8 {[%emt 0:01:04]} 17. Kf1 {[%emt 0:01:23]} Ke8 {[%emt 0:00:14]} 18. Ke2 {[%emt 0:01:48]} Bd8 {[%emt 0:01:36]} 19. Be3 {[%emt 0:00:54]} h6 {[%emt 0:00:53]} 20. Kd3 {[%emt 0:05:44]} Rc7 {[%emt 0:10:44]} 21. Rxc7 {[%emt 0:02:48]} Bxc7 {[%emt 0:00:15]} 22. Rc1 {[%emt 0:00:38]} Rc8 {[%emt 0:00:30]} 23. g3 {[%emt 0:04:26]} Kd8 {[%emt 0:01:33]} 24. b4 {[%emt 0:06:38]} Bb8 {[%emt 0:12:47]} 25. Rxc8+ {[%emt 0:01:56]} Kxc8 {[%emt 0:00:08]} 26. a4 {[%emt 0:01:14]} Bc7 {[%emt 0:00:35]} 27. Be2 {[%emt 0:05:57]} Kd8 {[%emt 0:05:22]} 28. f4 {[%emt 0:04:45]} Nd7 {[%emt 0:03:26]} 29. Bg4 {[%emt 0:01:36]} f6 {[%emt 0:00:45]} (29... exf4 $14 30. gxf4 Bb6) 30. Bxd7 {[%emt 0:11:00]} Kxd7 {[%emt 0:00:08]} 31. f5 {[%emt 0:00:28]} b5 {[%emt 0:01:03]} 32. a5 {[%emt 0:00:58]} Bd8 {[%emt 0:00:23]} 33. Ke2 {[%emt 0:03:14]} Ke8 {[%emt 0:00:33]} 34. Kf3 {[%emt 0:00:18]} Kf7 {[%emt 0:01:04]} 35. Kg4 {[%emt 0:00:45]} Be7 {[%emt 0:07:56]} 36. Kh5 {[%emt 0:00:42]} Bd8 {[%emt 0:03:40]} 37. Bb6 {[%emt 0:00:43]} Be7 {[%emt 0:00:08] [#]} 38. h4 $2 {[%emt 0:05:57]} (38. g4 $1 Bf8 39. Be3) 38... Kf8 $2 {[%emt 0:01:00]} (38... Bf8 $16) 39. Kg6 {[%emt 0:00:43]} Kg8 {[%emt 0:00:07]} 40. Be3 {[%emt 0:04:33]} Bd8 {[%emt 0:00:53]} 41. g4 {[%emt 0:05:56]} Be7 {[%emt 0:01:59]} 42. g5 {[%emt 0:00:45]} hxg5 {[%emt 0:00:24]} 43. hxg5 {[%emt 0:00:08]} fxg5 {[%emt 0:01:28]} 44. Bxg5 {[%emt 0:00:26]} Bxg5 {[%emt 0:00:17]} 45. Kxg5 {[%emt 0:00:06]} Kf7 {[%emt 0:00:09]} 46. Kh5 {[%emt 0:01:24]} Kf6 {[%emt 0:00:24]} 47. Kh4 {[%emt 0:00:27]} g6 {[%emt 0:03:44]} 48. fxg6 {[%emt 0:00:10]} Kxg6 {[%emt 0:00:08]} 49. Kg4 {[%emt 0:00:07]} Kf6 {[%emt 0:00:18]} 50. Kh5 {[%emt 0:00:46]} Kf7 $11 {[%emt 0:00:07]} 51. Kg5 {[%emt 0:00:46]} Kg7 {[%emt 0:00:06]} 52. Kf5 {[%emt 0:00:16]} Kf7 {[%emt 0:00:07]} 1/2-1/2

[Event "45th Guernsey Open 2019"]
[Site "Vale"]
[Date "2019.10.22"]
[Round "3.8"]
[White "Spanton, Tim R"]
[Black "Van den Boogaart, Jan Maarten"]
[Result "0-1"]
[ECO "B30"]
[WhiteElo "1927"]
[BlackElo "2039"]
[Annotator "NA RC"]
[PlyCount "97"]
[EventDate "2019.10.20"]
[EventCountry "GCI"]
[SourceTitle "playchess.com"]
[Source "ChessBase"]
[SourceQuality "1"]
[TimeControl "40/6000+30:2400+30"]

{[%evp 19,97,0,43,32767,42,0,65,69,83,32767,94,0,91,63,41,32767,32767,32767,32767,32767,-264,32767,-237,-238,-230,-268,-247,-325,-336,-368,-214,-235,32767,-179,-143,-213,-177,32767,32767,32767,32767,-273,-273,-281,-281,-268,-320,-332,-222,-209,-204,32767,32767,32767,32767,-556,-476,-541,-543,32767,32767,32767,-426,-443,0,-570,32767,-678,-723,-800,-997,-857,-903,32767,-1251,-29990,-29991,-29991,-29992,-29992]} 1. e4 {[%emt 0:00:00]} c5 {[%emt 0:00:00]} 2. Nf3 {[%emt 0:00:00]} Nc6 {[%emt 0:00:00]} 3. Bb5 {[%emt 0:00:00]} d6 {[%emt 0:00:25]} 4. d4 {[%emt 0:00:11]} cxd4 {[%emt 0:01:28]} 5. Qxd4 {[%emt 0:00:06]} Bd7 {[%emt 0:02:21]} 6. Bxc6 {[%emt 0:00:06]} Bxc6 {[%emt 0:05:00]} 7. Nc3 {[%emt 0:00:09]} Nf6 {[%emt 0:07:30]} 8. Bg5 {[%emt 0:00:06]} e6 {[%emt 0:11:00]} 9. O-O-O {[%emt 0:00:35]} Be7 {[%emt 0:00:49]} 10. Rhe1 {[%emt 0:01:15]} Qc7 {[%emt 0:11:01]} 11. Kb1 {[%emt 0:05:55] B53: Sicilian: 2...d6: Lines with Qxd4} (11. Qd2 Rd8 12. Nd4 a6 13. f3 O-O 14. Kb1 b5 15. g4 b4 16. Nce2 Bb7 17. Ng3 Rfe8 18. Rg1 Nd7 19. Bxe7 Rxe7 20. Nh5 Ne5 21. g5 Ng6 {1-0 (47) Hasangatin,R (2502)-Smirnov,T (2324) Serpukhov 2018}) 11... a6 {[%emt 0:03:15]} 12. Qd3 {[%emt 0:02:33]} (12. Bxf6 $5 Bxf6 13. Qxd6 Qxd6 14. Rxd6 $11) 12... b5 {[%emt 0:07:01]} ({Black should play} 12... O-O $11) 13. Bxf6 $146 {[%emt 0:02:57]} ({Predecessor:} 13. Nd4 Bb7 14. f3 O-O 15. g4 Rac8 16. h4 b4 17. Nce2 d5 18. e5 {0-1 (52) Eliseev,N (2069)-Ponomarev,D Oktjabrsky 2004}) 13... gxf6 {[%emt 0:00:40]} 14. Nd4 {[%emt 0:03:01]} Bb7 {[%emt 0:02:22]} 15. f3 {[%emt 0:02:18]} (15. Qe2 $16) 15... Rc8 {[%emt 0:12:50]} (15... b4 $11 16. Nce2 d5) 16. Rd2 {[%emt 0:05:58]} b4 {[%emt 0:06:47]} 17. Nce2 {[%emt 0:01:09]} Rg8 {[%emt 0:15:11]} 18. e5 {[%emt 0:08:11]} fxe5 {[%emt 0:04:23]} 19. Qxh7 {[%emt 0:00:12]} Rg6 {[%emt 0:03:42]} 20. Nb3 {[%emt 0:04:53]} Bf8 {[%emt 0:04:35]} ({But not} 20... Rxg2 21. Rc1 $19) 21. f4 {[%emt 0:12:11]} Be4 {[%emt 0:03:53]} ({Don't do} 21... Bxg2 22. Ng3) 22. Ka1 {[%emt 0:04:24]} d5 {[%emt 0:02:24]} ({Not} 22... Bxg2 23. Ng3 $17) 23. Qh8 {[%emt 0:02:32]} exf4 {[%emt 0:01:08]} 24. g3 {[%emt 0:03:32]} fxg3 {[%emt 0:01:31]} 25. Nxg3 {[%emt 0:00:21]} Qb6 {[%emt 0:09:01]} 26. Nxe4 {[%emt 0:20:20]} (26. Nd4 $17) 26... dxe4 {[%emt 0:00:08]} 27. Qe5 {[%emt 0:00:11] [#]} e3 $1 {[%emt 0:00:55]} 28. Rde2 {[%emt 0:03:43]} Bg7 {[%emt 0:00:09]} 29. Qe4 {[%emt 0:02:05]} a5 {[%emt 0:00:18]} 30. Kb1 {[%emt 0:04:25]} (30. Rxe3 $17 a4 31. Nc1) 30... a4 {[%emt 0:00:11]} 31. Nc1 {[%emt 0:00:23]} Qd4 {[%emt 0:00:54]} 32. Qxd4 {[%emt 0:00:28]} Bxd4 {[%emt 0:00:04]} 33. Nd3 {[%emt 0:00:23]} Rb8 {[%emt 0:00:26]} 34. Nf4 {[%emt 0:02:47]} Rh6 {[%emt 0:00:42]} 35. Nd3 {[%emt 0:04:53]} f5 {[%emt 0:00:36]} 36. Rg1 {[%emt 0:02:07]} Kf7 {[%emt 0:00:19]} 37. Reg2 {[%emt 0:01:11]} Rh7 {[%emt 0:00:46]} 38. Nf4 {[%emt 0:01:38]} e5 {[%emt 0:00:24]} 39. Ne2 {[%emt 0:00:22]} Bc5 {[%emt 0:00:44]} 40. Rg5 $1 $11 {[%emt 0:00:22]} Kf6 {[%emt 0:01:01]} 41. Rg6+ {[%emt 0:41:13]} Kf7 $2 {[%emt 0:03:03]} ({Black should try} 41... Ke7 $19 42. h4 f4) 42. Rc6 $2 {[%emt 0:00:00]} Rxh2 {[%emt 0:17:23]} 43. Rxc5 {[%emt 0:00:00]} Rxe2 {[%emt 0:00:21]} 44. Rxe5 {[%emt 0:00:00]} Kf6 {[%emt 0:00:12]} 45. Rd5 {[%emt 0:00:00]} Rf2 {[%emt 0:04:04]} 46. Rdd1 {[%emt 0:00:00]} f4 {[%emt 0:02:44]} 47. Rgf1 {[%emt 0:00:00]} Rxf1 {[%emt 0:01:24]} 48. Rxf1 {[%emt 0:00:00]} e2 {[%emt 0:00:10]} 49. Rh1 0-1

[Event "45th Guernsey Open 2019"]
[Site "Vale"]
[Date "2019.10.22"]
[Round "3.9"]
[White "Pleasants, Allan J"]
[Black "Rowe, Peter"]
[Result "1-0"]
[WhiteElo "2019"]
[BlackElo "1957"]
[Annotator "NA RC"]
[PlyCount "71"]
[EventDate "2019.10.20"]
[EventCountry "GCI"]
[SourceTitle "playchess.com"]
[Source "ChessBase"]
[SourceQuality "1"]
[TimeControl "40/6000+30:2400+30"]

{[%evp 15,71,42,32767,32767,32767,51,23,52,43,0,113,109,266,276,32767,32767,32767,262,281,192,244,214,296,32767,32767,32767,222,32767,345,346,383,589,32767,32767,633,618,622,615,650,632,613,643,657,32767,32767,32767,32767,32767,731,32767,32767,2681,32767,5610,29995,29996,29996,29997]} 1. d4 {[%emt 0:00:00]} d6 {[%emt 0:00:16]} 2. e4 {[%emt 0:00:00]} Nf6 {[%emt 0:00:11]} 3. Nc3 {[%emt 0:00:00]} Nbd7 {[%emt 0:00:37]} 4. Nf3 {[%emt 0:00:07]} e5 {[%emt 0:00:14]} 5. Be2 {[%emt 0:00:28]} Be7 {[%emt 0:00:17]} 6. g4 {[%emt 0:00:41] C41: Philidor Defence} h6 {[%emt 0:05:11]} (6... O-O 7. g5 Ne8 8. h4 c6 9. a4 Nc7 10. Be3 a6 11. a5 Nb5 12. Qd2 Re8 13. Nxb5 axb5 {½-½ (55) Amin,B (2654)-Jobava,B (2705) Al Ain 2013}) 7. Rg1 {[%emt 0:00:44]} exd4 {[%emt 0:02:16]} 8. Nxd4 {[%emt 0:12:55]} Nc5 {[%emt 0:02:42]} 9. f3 {[%emt 0:06:47]} Nh7 $146 {[%emt 0:10:24]} ({Predecessor:} 9... g6 10. Be3 Be6 11. Qd2 Bf8 12. O-O-O Qd7 13. b4 Na6 {1-0 (36) Savchenko,D (1628)-Rogozenco,T (1706) Oberhof 2012}) 10. Be3 {[%emt 0:07:46]} Bh4+ {[%emt 0:13:59]} 11. Kf1 {[%emt 0:02:00]} Ng5 {[%emt 0:05:22]} 12. Rg2 {[%emt 0:12:15]} (12. Nf5 $16 Nge6 13. Nd5 (13. Nxh4 Qxh4 14. Qd2 O-O $14)) 12... h5 {[%emt 0:09:58] [#]} (12... Nge6 $11 {remains equal.}) 13. Nf5 $1 {[%emt 0:13:39]} Bxf5 {[%emt 0:14:31]} (13... hxg4 $16 14. Rxg4 Nge6) 14. gxf5 {[%emt 0:00:40]} ({Don't do} 14. exf5 $6 hxg4 15. Rxg4 Nh7 $16) 14... Kf8 {[%emt 0:03:40]} 15. Qd2 {[%emt 0:02:43]} Nh7 {[%emt 0:05:13]} 16. Nd5 {[%emt 0:03:42]} Nd7 {[%emt 0:02:22]} 17. Kg1 {[%emt 0:11:28]} Ndf6 {[%emt 0:07:34]} (17... Nhf6 {is a better defense.} 18. Rd1 Ne5) 18. Bc4 {[%emt 0:04:05]} Qd7 {[%emt 0:04:25]} (18... Nd7 {was necessary.} 19. Bf4 Ne5 20. Bxe5 dxe5 21. Qb4+ Be7 22. Nxe7 Qxe7 23. Qxb7 Rd8) 19. Kh1 {[%emt 0:04:44]} Nxd5 {[%emt 0:02:35]} 20. Qxd5 {[%emt 0:00:23]} c6 {[%emt 0:00:42]} 21. Qd2 {[%emt 0:00:43]} Nf6 {[%emt 0:02:09]} (21... Rd8 $142 22. Bb3 (22. Bxa7 b5 $18) 22... Bf6 23. Bxa7 Qc7) 22. Rag1 {[%emt 0:01:38]} Rh7 {[%emt 0:02:21] [#]} 23. Rxg7 $3 {[%emt 0:06:37]} Rxg7 {[%emt 0:07:53]} 24. Bh6 {[%emt 0:00:15]} Ne8 {[%emt 0:00:57]} 25. Bxg7+ {[%emt 0:01:36]} Nxg7 {[%emt 0:02:21]} 26. Qh6 {[%emt 0:00:27]} d5 {[%emt 0:00:42]} 27. Qxg7+ {[%emt 0:01:37]} Ke7 {[%emt 0:00:22]} 28. Qe5+ {[%emt 0:01:52]} Kf8 {[%emt 0:01:13]} 29. Qh8+ {[%emt 0:05:04]} Ke7 {[%emt 0:00:11]} 30. Qxa8 {[%emt 0:00:46]} dxc4 {[%emt 0:00:52]} 31. Qb8 {[%emt 0:01:00]} Qd4 $18 {[%emt 0:02:59]} 32. Qxb7+ {[%emt 0:01:34]} Kd6 {[%emt 0:00:17]} 33. Qxf7 {[%emt 0:01:49]} Qf2 {[%emt 0:01:06]} 34. Rd1+ {[%emt 0:02:37]} Ke5 {[%emt 0:00:24]} 35. Qc7+ {[%emt 0:00:37] Double Attack} Kf6 {[%emt 0:00:10]} 36. Rd6+ {[%emt 0:00:42] Double Attack} 1-0